Cogmind - Beta 11.1 @@@ ROGUE MODE // 2022.05.22 @ 08:17:07 Player: Zach Result: Destroyed by G-47 Trooper with Particle Gun Performance ------------- Evolutions (0) 0 Regions Visited (1) 200 Robots Destroyed (2) 10 Value Destroyed (50) 50 Prototype IDs (0) 0 Alien Tech Used (0) 0 Bonus (0) 0 TOTAL SCORE: 260 Bonus ------- None Cogmind --------- Core Integrity 0/250 Matter 284/300 Energy 100/100 System Corruption 0% Temperature Hot (226) Movement Walking (330) Ox3 Location -10/Materials Parts ------- > --- POWER (1) -------- (None) > --- PROPULSION (2) --- Aluminum Leg > --- UTILITY (2) ------ Large Storage Unit Large Storage Unit > --- WEAPON (2) ------- (None) > --- INVENTORY (15) --- Light Ion Engine Light Treads Light Treads Aluminum Leg Aluminum Leg Aluminum Leg Small Storage Unit Peak State ------------ > --- POWER ------------ Ion Engine > --- PROPULSION ------- Aluminum Leg Aluminum Leg > --- UTILITY ---------- Large Storage Unit Large Storage Unit > --- WEAPON ----------- EM Pulse Gun Light Assault Rifle > --- INVENTORY -------- Light Ion Engine Light Treads Light Treads Aluminum Leg Aluminum Leg Small Storage Unit Small Storage Unit Structural Scanner Tractor Beam Medium Laser [Rating: 8] Favorites ----------- Power Ion Engine Engine Ion Engine Propulsion Aluminum Leg Leg Aluminum Leg Utility Large Storage Unit Storage Large Storage Unit Weapon Light Assault Rifle Energy Gun EM Pulse Gun Ballistic Gun Light Assault Rifle Build | -11 -10 ------- Run | Scr Mat Slots Evolved . | . . Power . | . . Propulsion . | . . Utility . | . . Weapon . | . . Parts Attached 12 | 7 5 Power 1 | 1 . Engine 1 | 1 . Core . | . . Reactor . | . . Propulsion 4 | 2 2 Treads . | . . Leg 4 | 2 2 Wheel . | . . Hover . | . . Flight . | . . Utility 4 | 2 2 Device . | . . Storage 4 | 2 2 Processor . | . . Hackware . | . . Protection . | . . Artifact . | . . Weapon 3 | 2 1 Energy Gun 2 | 1 1 Energy Cannon . | . . Ballistic Gun 1 | 1 . Ballistic Cannon . | . . Launcher . | . . Special Weapon . | . . Impact Weapon . | . . Slashing Weapon . | . . Piercing Weapon . | . . Special Melee Weapon . | . . Unidentified Prototypes . | . . Parts Lost 5 | . 5 Power 1 | . 1 Propulsion 1 | . 1 Utility . | . . Weapon 3 | . 3 Highest Loss Streak 4 | . 4 To Critical Strikes . | . . Average Slot Usage (%) 97 | . 97 Engine 13 | . 13 Leg 27 | . 27 Storage 28 | . 28 Energy Gun 13 | . 13 Ballistic Gun 13 | . 13 Naked Turns . | . . Heaviest Build 48 | 18 48 Greatest Support 20 | 20 20 Greatest Overweight (x) 3 | . 3 Average Overweight (x) 1 | . 1 Largest Inventory Capacity 15 | 8 15 Average Capacity 13 | 7 14 Most Carried 11 | 5 11 Average Carried 6 | 2 7 Final Capacity 15 | 8 15 Final Carried 7 | 5 7 Class Distribution -------------------- 100% | Mutant Dominant Class ---------------- Mutant | -10/Materials Resources | -11 -10 ----------- Run | Scr Mat Matter Collected 307 | 272 35 Remotely . | . . Salvage Created 108 | 61 47 Parts 6 | 3 3 Haulers Intercepted . | . . Recyclers Shooed 1 | . 1 Parts Field Recycled . | . . Retrieved Matter . | . . Parts Self-Destructed . | . . Prevented . | . . Kills | -11 -10 ------- Run | Scr Mat Combat Hostiles Destroyed 1 | . 1 Guns 1 | . 1 Classes Destroyed 2 | 1 1 Recycler 1 | 1 . Grunt 1 | . 1 Best Kill Streak 1 | 1 1 Combat Bots Only 1 | . 1 Max Kills in Single Turn 1 | 1 1 Gunslinging . | . . Exploded . | . . Melee . | . . Uniques/NPCs Destroyed . | . . Combat | -11 -10 -------- Run | Scr Mat Damage Taken 950 | . 950 Core 260 | . 260 Absorbed by Shields . | . . Core Remaining (%) 100 | 100 . Volleys Fired 28 | 2 26 Largest 2 | 2 2 Hottest 70 | 60 70 Shots Fired 53 | 4 49 Gun 53 | 4 49 Cannon . | . . Launcher . | . . Special . | . . Kinetic 25 | 2 23 Thermal 11 | . 11 Explosive . | . . Electromagnetic 17 | 2 15 Robot Hit Streak 7 | 2 7 Robot Miss Streak 3 | 1 3 Penetration Max . | . . Secondary Targets . | . . Shots Hit Robots 30 | 2 28 Core Hits 7 | 1 6 Critical Kills . | . . Critical Parts Destroyed 1 | . 1 Critical Strikes 1 | . 1 Destroy 1 | . 1 Melee Attacks . | . . Impact . | . . Slashing . | . . Piercing . | . . Sneak Attacks . | . . Combat Hostiles . | . . Follow-up Attacks . | . . Damage Inflicted 305 | 21 284 Guns 305 | 21 284 Cannons . | . . Explosions . | . . Melee . | . . Ramming . | . . Kinetic 144 | 6 138 Thermal 62 | . 62 Explosive . | . . Electromagnetic 99 | 15 84 Impact . | . . Slashing . | . . Piercing . | . . Highest Corruption . | . . Average Corruption . | . . Corruption Purged . | . . Corruption Blocked . | . . Overload Shots . | . . Overflow Damage . | . . Projectiles . | . . Explosions . | . . Melee . | . . Knockbacks . | . . Impact . | . . Kinetic . | . . Secondary . | . . Self-Inflicted Damage . | . . Shots . | . . Rammed . | . . Targets Rammed 1 | . 1 Kicked 1 | . 1 Crushed . | . . Highest Temperature 274 | 20 274 Average Temperature 82 | 15 86 Received Heat Transfer 477 | . 477 Siege Activations . | . . Robots Corrupted . | . . Combat Hostiles . | . . Parts Fried . | . . Impact Corruptions . | . . Robots Melted . | . . Combat Hostiles . | . . Parts Melted . | . . Heat Transferred 185 | . 185 Parts Sabotaged . | . . Parts Stolen . | . . Parts Stripped . | . . Power Chain Reactions . | . . Missiles Intercepted . | . . Alert | -11 -10 ------- Run | Scr Mat Peak Influence 80 | 5 80 Initial 3 | . 3 Average 19 | 2 23 Maximum Alert Level . | . . Low Security (%) 100 | 100 100 Level 1 . | . . Level 2 . | . . Level 3 . | . . Level 4 . | . . Level 5 . | . . High Security . | . . Max Security . | . . Squads Dispatched 1 | . 1 Investigation 1 | . 1 Extermination . | . . Reinforcement . | . . Assault . | . . Garrison . | . . Intercept . | . . Searches Triggered . | . . Construction Impeded . | . . Haulers Reinforced . | . . Active Scanning Responses . | . . Cargo Convoy Interrupts . | . . Stealth | -11 -10 --------- Run | Scr Mat Distress Signals 2 | . 2 Communications Jammed . | . . Distress Signals . | . . Times Spotted 11 | . 11 Peak Tracking Total 7 | . 7 Tactical Retreats . | . . Traps | -11 -10 ------- Run | Scr Mat Traps Triggered 1 | . 1 Indirectly . | . . Trap Hack Attempts . | . . Triggered . | . . Disarmed . | . . Reprogrammed . | . . Reused . | . . Traps Extracted . | . . Installed . | . . Triggered . | . . Machines | -11 -10 ---------- Run | Scr Mat Machines Disabled 1 | . 1 Max in Single Turn 1 | . 1 Machines Sabotaged . | . . Garrisons Compromised . | . . Overloaded Fab Kills . | . . Hacking | -11 -10 --------- Run | Scr Mat Machines Accessed 1 | . 1 Terminals . | . . Fabricators . | . . Repair Stations 1 | . 1 Recycling Units . | . . Scanalyzers . | . . Garrison Access . | . . Total Hacks 1 | . 1 Successful 1 | . 1 Failed . | . . Catastrophic . | . . Database Lockouts . | . . Manual . | . . Terminals . | . . Fabricators . | . . Repair Stations 1 | . 1 Recycling Units . | . . Scanalyzers . | . . Garrison Access . | . . Terminal Hacks . | . . Fabricator Hacks . | . . Repair Station Hacks 1 | . 1 Scan Component 1 | . 1 Recycling Unit Hacks . | . . Scanalyzer . | . . Garrison Access Hacks . | . . Unauthorized Hacks . | . . Terminals . | . . Fabricators . | . . Repair Stations . | . . Recycling Units . | . . Scanalyzers . | . . Garrison Access . | . . Data Cores Recovered . | . . Used . | . . Hacking Detections . | . . Full Trace Events . | . . Feedback Events . | . . Feedback Blocked . | . . Robot Schematics Acquired . | . . Robots Built . | . . Authchips . | . . Time . | . . Total Robot Build Rating . | . . Part Schematics Acquired . | . . Parts Built . | . . Authchips . | . . Time . | . . Total Part Build Rating . | . . Parts Repaired . | . . Time . | . . Parts Recycled . | . . Recycled Matter . | . . Retrieved Matter . | . . Retrieved Components . | . . Parts Scanalyzed . | . . Part Schematics Acquired . | . . Parts Damaged . | . . Bothacking | -11 -10 ------------ Run | Scr Mat Used RIF Installer . | . . Robots Hacked . | . . Non-combat . | . . Combat . | . . Robot Hacks Applied . | . . Relay Couplers Released . | . . Fabnet Peak Effective % . | . . Robots Rewired . | . . Allies Hacked . | . . Hacks Repelled . | . . Allies | -11 -10 -------- Run | Scr Mat Total Allies . | . . Largest Group . | . . Highest-Rated Group . | . . Highest-Rated Ally . | . . Total Orders . | . . Ally Attacks . | . . Total Damage . | . . Kills . | . . Allies Corrupted . | . . Allies Melted . | . . Intel | -11 -10 ------- Run | Scr Mat Robot Analysis Total . | . . Derelict Logs Recovered . | . . Drone Launches . | . . Drone Recoveries . | . . Exploration | -11 -10 ------------- Run | Scr Mat Turns Passed 521 | 108 413 Spaces Moved 186 | 77 109 Core 8 | 8 . Treads . | . . Legs 178 | 69 109 Wheels . | . . Hover . | . . Flight . | . . Fastest Speed 50 | 50 120 Average Speed 192 | 112 248 Slowest Speed 330 | 120 330 Overloaded Moves . | . . Propulsion Burnouts . | . . Robots Hopped . | . . Cave-ins Triggered . | . . Exploration Rate (%) 13 | 5 22 Regions Visited 1 Branch Regions . Pre-discovered Areas . | . . Known Exits Taken . | . . Unknown Exits Taken 1 | 1 . Scrap Searched . | . . Spaces Dug . | . . Terrain Destroyed . | . . Melee . | . . Projectile . | . . AOE . | . . Terrain Rammed . | . . Walls Destroyed . | . . Machines Disabled . | . . Actions | -11 -10 --------- Run | Scr Mat Total 297 | 91 206 Wait 58 | . 58 Move 185 | 76 109 Hop . | . . Pick Up 10 | 6 4 Fast Attach 6 | 6 . Attach 2 | 1 1 Detach . | . . Swap 4 | . 4 Drop 3 | . 3 Fire 28 | 2 26 Melee . | . . Ram . | . . Kick 1 | . 1 Crush . | . . Escape Stasis . | . . Rewire . | . . Trap . | . . Miscellaneous . | . . Route ------- -11/Scrapyard -10/Materials History --------- Turn | Location | Event 41 | -11/Scrapyard | Discovered new exit (range 15) 109 | -11/Scrapyard | Entered Materials 316 | -10/Materials | Build established: Mutant 515 | -10/Materials | Core integrity fell below 50% 519 | -10/Materials | Core integrity fell below 20% 522 | -10/Materials | Destroyed by G-47 Trooper with Particle Gun Last Messages --------------- 00456_ G-34 Mercenary suffers critical hit (Destroy). 00456_ Destroyed Aluminum Leg. 00457_ W-16 Scout sends out distress signal. 00463_ Matter Filter disabled. 00464_ G-34 Mercenary destroyed. 00470_ K-01 Serf collects debris. 00470_ Acquired 35 matter. 00470_ EM Pulse Gun destroyed. 00471_ R-06 Scavenger collects Heat Sink. 00473_ K-01 Serf collects debris. 00481_ U-05 Engineer builds a Door. 00482_ K-01 Serf collects debris. 00506_ Ion Engine destroyed. 00510_ Lgt. Assault Rifle destroyed. 00516_ Aluminum Leg destroyed. 00518_ Nuclear Reactor explodes. 00518_ Med. Laser destroyed. 00518_ G-34 Mercenary destroyed. 00521_ Kicked G-47 Trooper. 00522_ U-05 Engineer lays Concrete. Map ----- +----------------------------------------------------+ | ???????????????????????????????? | | ???????????????????????????????? | | ???????????????????????????????? | | ???????????????????????????????? | | ???????????????????????????????? | | ???????????????????????????????? | | ???????????????????????????????? | | ???????????????????? ?????????? | | ??????????????????# ?????????? | | ??????????????????# ?????????? | | ??????????????????# ?????????? | | ??????????? ###### #????????? | | ??????????? ????????? | | ?????????? ????????? | | ?????????? +???????? | | ????????? #???????? | | ????????? #???????? | | ????????? #???????? | | ?????????? #???????? | | ??????????? #???????? | | ?????????????""" #???????? | | ????????????"""" u ####????? | | ????????????"""" r ## ###### | | ????????????"""" = | | ????????????"""" [% | | ????????????"""" g@ | | ????????????"""% # | | ????????? # | | ????????# | | ????????# """"" # | | ???????????""""" T | | ????????? ???""" "" | | ????????# ??""" ###%g=! # | | ????????# """"% #u gg # | | ????????# """""k + !! # | | ????????# """"% # # | | ????##### #### # # | | ????? #####+######## | | ?????? # #? | | ??????? # #? | | ????????# # """ """ #? | | ????????# # """ """ #? | | ????????# # """ """ #? | | ????????# # #? | | ????????# """# #? | | ????????# R"####+########? | | ????????# """## #?????? | | ????????# #?????? | | ????????# #?????? | | ????????# ### #?????? | +----------------------------------------------------+ Best States ------------- Heat Dissipation 25 Energy Generation 10 Energy Capacity 250 Matter Stores 300 Matter Capacity 300 Sight Range 16 Terrain Scan Density 10 Evasion (%) 55 Item Schematics ----------------- None Robot Schematics ------------------ None Fabricated ------------ Nothing Alien Tech Used ----------------- None Achievements -------------- None Challenges ------------ None Game ------ Seed ClaymoresTerrabombMultirail Manual? 0 Play Time 00:12:04 Cumulative 32.6 hours Start 2022.05.22 @ 08:03:35 End 2022.05.22 @ 08:17:07 Sessions 1 Manual Loads 0 Difficulty Rogue Special Mode None Game No. 49 Rogue 49 Adventurer 0 Explorer 0 Win Type - Total 0 Types 0/0/0/0/0/0/0/0/0 Lore% 6 Gallery% 19 Achievement% 16 Wizard Run 0 Options --------- ASCII 0 Keyboard 1 Movement Arrows Keybinds 0 Fullscreen 1 Font 18/SmallcapsGlow Map View 76x50 Tactical HUD 1 Map Filters NONE Filters NONE Steam 1 RUN: 3c344625-7f73-4791-88e6-fbec3bcadb4e